bitfinex/quotes_ETHUSD_20260307
["timestamp","ask_amount","ask_price","bid_price","bid_amount"]
[1772861470126,0.48895592,1975.9,1975.5,0.47940482]
[1772861470521,0.48795592,1975.8,1975.5,0.47940482]
[1772861479464,0.48795592,1975.8,1975.1,5.06300247]
[1772861479465,0.48795592,1975.5,1975.2,0.45790313]
[1772861479763,0.48795592,1975.5,1975.2,0.0011]
[1772861484536,0.48795592,1975.4,1975.2,0.0011]
[1772861485558,2.58629502,1975.5,1975.3,0.25680313]
[1772861488070,2.58629502,1975.5,1975.3,1.26562006]
[1772861488450,2.58629502,1975.5,1975.3,1.52242319]
[1772861488754,0.48795592,1975.6,1975.3,1.52242319]
[1772861491772,3.07425094,1975.6,1975.4,0.0011]
[1772861492566,2.58629502,1975.6,1975.4,0.25790313]
[1772861493747,2.58629502,1975.6,1975.4,1.5234657]
[1772861493953,2.58629502,1975.6,1975.5,0.25680313]
[1772861494554,0.001,1975.7,1975.5,0.25680313]
[1772861496473,0.001,1975.7,1975.6,0.25680313]
[1772861497674,0.001,1975.7,1975.5,1.52227744]
[1772861503078,0.001,1975.7,1975.5,1.26547431]
[1772861503280,0.001,1975.7,1975.6,0.25680313]
[1772861503581,0.001,1975.9,1975.7,0.25580313]
[1772861507988,0.46675624,1975.9,1975.6,0.0011]
[1772861508187,0.46675624,1975.9,1975.6,1.26652823]
[1772861509890,0.46675624,1975.9,1975.6,1.52233136]
[1772861516780,0.46675624,1975.9,1975.6,0.25690313]
[1772861516986,0.46675624,1975.9,1975.7,0.0011]
[1772861517187,0.001,1975.8,1975.7,0.0011]
[1772861518674,0.001,1975.8,1975.5,0.0011]
[1772861518675,0.46768678,1975.8,1975.5,0.0011]
[1772861518865,0.46668678,1975.6,1975.5,0.0011]
[1772861519065,0.46668678,1975.6,1975.3,0.0011]
[1772861519899,0.46668678,1975.5,1975.1,0.0011]
[1772861521796,0.46668678,1975.3,1975.1,0.0011]
[1772861522999,0.46668678,1975.3,1974.9,0.0011]
[1772861525307,0.4787772,1975.1,1974.7,0.0011]
[1772861527705,0.4787772,1974.9,1974.7,0.0011]
[1772861528576,1.26580565,1975.1,1974.7,0.25910313]
[1772861528577,0.4787772,1975.1,1974.7,0.25910313]
[1772861529175,0.4787772,1975.1,1974.8,0.25910313]
[1772861530706,0.4787772,1975.1,1974.8,1.52504374]
[1772861532592,2.0594104,1975.2,1974.9,0.25800313]
[1772861533411,3.32510879,1975.2,1974.9,0.25800313]
[1772861533608,0.4787772,1975.1,1974.8,1.26704771]
[1772861536985,0.4787772,1975.1,1974.8,0.25910313]
[1772861541197,0.4787772,1975.1,1974.8,1.52503564]
[1772861541622,0.4787772,1975.1,1974.9,0.0011]
[1772861553353,0.001,1975.0,1974.9,0.0011]
[1772861556042,0.45354474,1974.9,1974.5,0.0011]
[1772861558055,0.45354474,1974.7,1974.5,0.0011]
[1772861560246,1.71958165,1974.7,1974.5,0.0011]
[1772861560443,0.45354474,1974.6,1974.5,0.0011]
[1772861560619,0.45354474,1974.6,1974.3,0.0011]
[1772861562123,1.26614332,1974.5,1974.3,0.0011]
[1772861562324,1.71968806,1974.5,1974.3,0.0011]
[1772861564852,1.71968806,1974.5,1974.4,0.0011]
[1772861566043,1.71968806,1974.5,1974.2,0.0011]
[1772861566259,0.45354474,1974.4,1974.2,0.0011]
[1772861575039,1.71965567,1974.6,1974.2,0.25910313]
[1772861575752,0.45354474,1974.5,1974.2,0.25910313]
[1772861576339,1.71965567,1974.6,1974.2,0.25910313]
[1772861576666,1.71965567,1974.6,1974.3,0.0011]
[1772861577977,1.26611093,1974.6,1974.3,0.0011]
[1772861578165,0.47845139,1974.5,1974.3,0.0011]
[1772861578471,0.47845139,1974.4,1974.2,0.0011]
[1772861578671,0.47845139,1974.4,1974.1,0.0011]
[1772861581945,0.47845139,1974.6,1974.1,0.25910313]
[1772861582874,0.47845139,1974.6,1974.3,0.25800313]
[1772861585207,0.5,1974.5,1974.1,0.0011]
[1772861585358,0.5,1974.4,1974.0,0.0011]
[1772861587270,0.5,1974.3,1974.0,0.0011]
[1772861588893,0.5,1974.3,1974.2,0.0011]
[1772861594260,3.34681204,1974.5,1974.2,0.0011]
[1772861594464,0.5,1974.4,1974.2,0.0011]
[1772861596809,0.5,1974.3,1974.2,0.0011]
[1772861616417,1.76627158,1974.3,1974.2,0.0011]
[1772861616796,0.5,1974.2,1974.0,0.0011]
[1772861617401,0.5,1974.2,1973.7,0.0011]
[1772861617686,0.5,1974.2,1973.7,0.0022]
[1772861619525,0.49945,1974.1,1973.7,0.0022]
[1772861620420,0.49945,1974.1,1973.7,0.0011]
[1772861620597,0.49945,1974.1,1973.8,0.0011]
[1772861621627,0.49945,1974.0,1973.7,0.0011]
[1772861621836,0.49945,1974.0,1973.7,0.0022]
[1772861622718,0.49945,1974.0,1973.7,0.0011]
[1772861623022,0.49945,1973.9,1973.4,2.7815312]
[1772861623233,0.49945,1973.9,1973.5,0.0011]
[1772861623901,0.49945,1973.9,1973.8,0.0011]
[1772861624108,0.49945,1974.0,1973.8,0.0011]
[1772861626636,2.0790832,1974.0,1973.8,0.0011]
[1772861629347,0.49945,1973.9,1973.8,0.0011]
[1772861629639,0.49945,1973.9,1973.5,0.0011]
[1772861632726,0.49945,1973.7,1973.5,0.0011]
[1772861635445,0.49945,1973.6,1973.5,0.0011]
[1772861635739,0.49945,1973.6,1973.0,0.0022]
[1772861636527,0.49945,1973.6,1973.5,0.0011]
[1772861636740,0.4989,1973.5,1973.3,0.0011]
[1772861637837,1.26678926,1973.5,1973.3,0.0011]
[1772861638040,0.4989,1973.4,1973.3,0.0011]
[1772861643239,0.4989,1973.5,1973.3,0.0011]
[1772861647562,2.0785332,1973.6,1973.3,0.0033]
[1772861648776,2.0785332,1973.6,1973.4,0.0011]
[1772861654171,1.5796332,1973.6,1973.4,0.0033]
[1772861655373,1.5796332,1973.6,1973.5,0.0022]
[1772861656285,1.5796332,1973.6,1973.4,0.0033]
[1772861656703,0.4989,1973.7,1973.4,0.0033]
[1772861660905,0.001,1973.6,1973.4,0.0033]
[1772861661406,0.4999,1973.6,1973.4,0.0011]
[1772861664224,1.5806332,1973.8,1973.4,0.47557618]
[1772861665413,2.06243096,1973.8,1973.4,0.47557618]
[1772861666588,2.06243096,1973.8,1973.5,1.26678489]
[1772861666787,2.06243096,1973.8,1973.5,1.74126107]
[1772861666988,2.06243096,1973.8,1973.5,0.47447618]
[1772861667605,0.001,1973.8,1973.5,0.47447618]
[1772861667797,1.97474221,1974.0,1973.5,0.47447618]
[1772861668000,0.48179776,1973.9,1973.5,0.47447618]
[1772861668185,0.48179776,1973.9,1973.4,1.26789823]
[1772861668392,0.48179776,1973.9,1973.4,1.74237441]
[1772861668787,0.48179776,1973.9,1973.5,0.47447618]
[1772861671706,0.48179776,1973.9,1973.6,1.26672071]
[1772861671907,0.48179776,1973.9,1973.6,1.74357673]
[1772861672715,0.39510901,1974.0,1973.7,0.47685602]
[1772861672919,0.001,1973.8,1973.7,0.47685602]
[1772861673108,0.39510901,1974.0,1973.7,0.47685602]
[1772861674007,0.39510901,1974.0,1973.8,1.26659235]
[1772861674327,0.39510901,1974.0,1973.9,0.47685602]
[1772861676627,0.39510901,1974.0,1973.9,1.74338421]
[1772861676831,0.06427435,1974.0,1973.9,1.74338421]
[1772861677031,0.05815927,1974.0,1973.9,1.74338421]
[1772861685047,0.05815927,1974.0,1973.9,1.26652819]
[1772861685436,0.05815927,1974.0,1973.9,1.26762819]
[1772861686248,0.05815927,1974.0,1973.9,0.0011]
[1772861686445,0.05815927,1974.0,1973.6,0.0011]
[1772861686446,0.47659419,1973.9,1973.6,0.0011]
[1772861687746,0.47659419,1973.8,1973.6,0.0011]
[1772861690544,1.74325072,1973.7,1973.5,0.0011]
[1772861690745,0.47659419,1973.7,1973.5,0.0011]
[1772861692042,0.47659419,1973.7,1973.3,0.0011]
[1772861693521,0.47659419,1973.8,1973.3,0.47795602]
[1772861695854,0.47659419,1973.7,1973.3,1.74481958]
[1772861696536,0.47659419,1973.7,1973.4,0.47685602]
[1772861697754,0.47659419,1973.7,1973.4,0.0011]
[1772861697936,0.47759419,1973.7,1973.4,0.0011]
[1772861700237,0.48196976,1973.6,1973.4,0.0011]
[1772861701740,0.48296976,1973.7,1973.4,0.0011]
[1772861701943,0.48296976,1973.7,1973.4,0.47789136]
[1772861702361,1.5796332,1973.8,1973.4,0.47789136]
[1772861702362,1.5796332,1973.8,1973.6,0.47679136]
[1772861702578,1.51852214,1973.8,1973.6,0.47679136]
[1772861704150,0.37090613,1973.9,1973.6,0.47679136]
[1772861704671,0.37090613,1973.9,1973.7,1.74344789]
[1772861709495,0.37090613,1973.9,1973.8,0.0011]
[1772861710164,0.17090613,1973.9,1973.8,0.3013]
[1772861711189,1e-08,1973.9,1973.8,0.3013]
[1772861713080,1e-08,1973.9,1973.8,1.56789235]
[1772861716536,1e-08,1973.9,1973.8,0.0011]
[1772861716706,1e-08,1973.9,1973.8,1.26769235]
[1772861722827,1e-08,1973.9,1973.8,0.0011]
[1772861725730,0.47055534,1973.9,1973.8,0.0011]
[1772861726030,0.47055534,1973.9,1973.6,0.0011]
[1772861728525,0.47055533,1973.8,1973.6,0.0011]
[1772861731643,0.47055533,1973.7,1973.6,0.0011]
[1772861735052,1.26759271,1973.8,1973.6,0.0011]
[1772861735053,0.47854035,1973.8,1973.6,0.0011]
[1772861739553,0.001,1973.8,1973.6,0.3024]
[1772861742556,7.6556213,1974.1,1973.7,0.3003]
[1772861742557,2.59,1974.1,1973.7,0.3003]
[1772861742857,0.47854035,1974.2,1973.9,0.3003]
[1772861745547,0.47854035,1974.2,1973.9,1.5667709]
[1772861746557,0.001,1974.2,1974.0,0.3003]
[1772861747471,0.001,1974.2,1974.0,1.5667454]
[1772861747769,0.47854035,1974.2,1973.8,0.3003]
[1772861749876,0.47854035,1974.2,1973.9,1.56682819]
[1772861757124,0.001,1974.2,1974.0,0.3003]
[1772861758123,0.001,1974.1,1974.0,0.3003]
[1772861759018,0.001,1974.1,1973.9,1.26762819]
[1772861759184,0.46815492,1974.1,1973.9,1.26762819]
[1772861760015,0.46815492,1974.1,1973.9,1.26761266]
[1772861764651,0.46815492,1974.1,1973.9,0.0011]
[1772861764836,0.46214683,1974.0,1973.9,0.0011]
[1772861765639,0.46214683,1974.0,1973.6,5.06795256]
[1772861765640,0.46214683,1974.0,1973.6,0.0011]
[1772861765935,0.46214683,1974.0,1973.6,1.26781109]
[1772861766316,0.46214683,1974.0,1973.6,0.0011]
[1772861767837,0.46214683,1973.9,1973.6,0.0011]
[1772861769853,0.46214683,1973.9,1973.7,0.0011]
[1772861770054,0.46214683,1973.8,1973.7,0.0011]
[1772861778577,0.46314683,1974.0,1973.7,0.3025]
[1772861779163,2.591,1974.1,1973.9,0.48797222]
[1772861779745,0.001,1974.1,1973.9,0.48797222]
[1772861782285,0.001,1974.1,1974.0,0.0011]
[1772861783372,0.001,1974.1,1974.0,0.48907222]
[1772861783584,0.001,1974.5,1974.1,0.48797222]
[1772861783789,0.00200001,1974.5,1974.1,0.48797222]
[1772861784296,0.00200001,1974.5,1974.3,0.48797222]
[1772861784489,0.001,1974.5,1974.3,0.48797222]
[1772861786469,0.37651678,1974.9,1974.5,0.48797222]
[1772861786675,0.83866361,1974.9,1974.5,0.48797222]
[1772861787796,0.83866361,1974.9,1974.4,1.26620745]
[1772861787797,0.46314684,1974.8,1974.4,1.26620745]
[1772861788101,0.46314684,1974.8,1974.4,1.75417967]
[1772861792327,0.47593694,1974.7,1974.4,0.48797222]
[1772861792500,0.47693695,1974.7,1974.4,0.48797222]
[1772861793219,0.00100001,1974.6,1974.4,0.48797222]
[1772861793410,0.00100001,1974.6,1974.3,1.74220898]
[1772861793614,0.47693695,1974.6,1974.3,1.74220898]
[1772861794318,0.47693695,1974.6,1974.3,0.47594719]
[1772861796231,0.47693695,1974.5,1974.1,0.47594719]
[1772861796432,1.74214439,1974.4,1974.1,0.47594719]
[1772861797527,0.00100001,1974.3,1974.1,0.47594719]
[1772861798324,1.74214439,1974.4,1974.1,0.47594719]
[1772861798528,0.00100001,1974.3,1974.1,0.47594719]
[1772861798720,0.47693695,1974.3,1974.0,0.0011]
[1772861798920,0.00100001,1974.2,1974.0,0.0011]
[1772861799537,0.00100001,1974.1,1974.0,0.0011]
[1772861809726,0.47593694,1974.2,1974.0,0.0011]
[1772861809930,0.00100001,1974.1,1974.0,0.0011]
[1772861812860,0.00100001,1974.1,1974.0,0.47704719]
[1772861818941,2.591,1974.5,1974.1,0.49801229]
[1772861819272,0.001,1974.5,1974.1,0.49801229]
[1772861820935,0.001,1974.7,1974.3,0.49801229]
[1772861822962,0.001,1974.7,1974.5,0.46576688]
[1772861825445,0.001,1974.7,1974.6,1.73184608]
[1772861826771,0.37651678,1974.9,1974.7,0.46576688]
[1772861827776,0.37651678,1974.9,1974.8,1.73171786]
[1772861829377,0.001,1975.0,1974.8,1.73171786]
[1772861829753,0.001,1975.0,1974.9,0.46576688]
[1772861831166,0.001,1975.0,1974.9,1.73165376]
[1772861832377,0.001,1975.0,1974.9,0.46576688]
[1772861833087,0.001,1975.0,1974.9,1.73165376]
[1772861833291,0.49816524,1975.5,1975.1,0.46576688]
[1772861835265,0.49816524,1975.5,1975.2,1.26569461]
[1772861835471,0.49816524,1975.6,1975.3,0.46576688]
[1772861836287,0.49916524,1975.8,1975.3,0.46576688]
[1772861837559,0.49916524,1975.8,1975.4,1.26556646]
[1772861837759,0.49916524,1975.8,1975.4,1.73133334]
[1772861838770,0.49816524,1975.7,1974.9,0.46576688]
[1772861840392,0.49816524,1975.5,1975.1,0.46576688]
[1772861840562,0.49816524,1975.5,1975.0,1.26582278]
[1772861840563,0.49816524,1975.5,1975.0,1.73158966]
[1772861841379,0.49816524,1975.5,1975.1,0.46576688]
[1772861842601,0.49816524,1975.5,1975.1,1.73146819]
[1772861843090,0.49816524,1975.5,1975.1,0.46576688]
[1772861843264,0.49816524,1975.4,1975.0,1.73268452]
[1772861843996,0.49816524,1975.4,1975.0,1.26691764]
[1772861844365,0.49816524,1975.4,1975.0,0.0011]
[1772861844763,0.49816524,1975.2,1975.0,0.0011]
[1772861848082,0.49816524,1975.1,1975.0,0.0011]
[1772861852616,0.4565631,1975.3,1975.0,0.0011]
[1772861852920,0.4565631,1975.4,1975.0,0.49707206]
[1772861853625,0.4565631,1975.4,1975.0,0.0011]
[1772861854332,0.4565631,1975.2,1975.0,0.0011]
[1772861855017,1.26563053,1975.3,1975.0,0.49707206]
[1772861855320,1.72219363,1975.3,1975.0,0.49707206]
[1772861855689,0.4565631,1975.2,1975.0,0.0011]
[1772861856236,1.26563053,1975.3,1975.0,0.0011]
[1772861856237,1.26561504,1975.4,1975.0,0.0011]
[1772861856389,7.6521095,1975.5,1975.2,0.49597206]
[1772861856390,3.85550804,1975.5,1975.2,0.49597206]
[1772861856595,4.31207114,1975.5,1975.2,0.49597206]
[1772861857009,0.4565631,1975.4,1975.1,0.49597206]
[1772861858621,0.4565631,1975.4,1975.0,1.2668758]
[1772861858918,0.4565631,1975.3,1975.0,1.2668758]
[1772861859124,0.4565631,1975.3,1975.0,1.76284786]
[1772861860504,4.3121132,1975.5,1975.1,0.49597206]
[1772861861416,3.0465631,1975.5,1975.1,1.76167431]
[1772861861726,0.4565631,1975.4,1975.1,1.76167431]
[1772861862424,0.001,1975.6,1975.2,0.49597206]
[1772861863327,0.001,1975.6,1975.3,1.76160259]
[1772861863512,0.001,1975.6,1975.4,0.49597206]
[1772861865400,0.001,1975.6,1975.5,1.76147446]
[1772861866209,0.001,1975.6,1975.5,0.49597206]
[1772861867828,0.001,1975.6,1975.5,1.76147446]
[1772861870317,0.001,1975.6,1975.5,0.49597206]
[1772861872328,0.001,1975.6,1975.5,1.76147446]
[1772861872531,0.001,1975.6,1975.3,1.76156958]
[1772861872703,0.001,1975.6,1975.4,0.49597206]
[1772861874828,0.4575631,1975.6,1975.2,3.06562696]
[1772861875200,0.4575631,1975.6,1975.2,1.79997206]
[1772861875610,0.4575631,1975.6,1975.2,3.06566229]
[1772861876236,0.4575631,1975.6,1975.1,0.0011]
[1772861876934,0.4565631,1975.4,1975.1,0.0011]
[1772861878422,3.04216063,1975.5,1975.1,0.48648372]
[1772861879408,4.30767216,1975.5,1975.2,0.48638372]
[1772861879609,4.30967216,1975.5,1975.2,0.001]
[1772861880249,3.04416063,1975.5,1975.2,0.48638372]
[1772861881111,4.30966594,1975.5,1975.2,0.48638372]
[1772861881853,1.71966594,1975.5,1975.2,0.48638372]
[1772861882035,0.45416063,1975.5,1975.2,0.48638372]
[1772861885166,0.002,1975.5,1975.2,1.26668797]
[1772861885317,0.002,1975.5,1975.3,0.47735431]
[1772861886752,0.002,1975.5,1975.2,0.47835431]
[1772861886753,0.4909153,1975.5,1975.2,0.47835431]
[1772861888649,0.4909153,1975.5,1975.2,1.74404737]
[1772861888855,0.4909153,1975.5,1975.2,1.74398749]
[1772861889026,0.4909153,1975.5,1975.2,0.47835431]
[1772861890054,1.7564398,1975.5,1975.2,0.47835431]
[1772861890955,0.4909153,1975.5,1975.2,0.47835431]
[1772861891252,0.4909153,1975.5,1975.3,0.47735431]
[1772861891253,0.002,1975.5,1975.3,0.47735431]
[1772861891755,0.002,1975.5,1975.3,0.47835431]
[1772861891955,0.002,1975.4,1975.3,0.47835431]
[1772861892840,0.001,1975.6,1975.5,0.47735431]
[1772861893046,0.001,1975.6,1975.5,1.74285671]
[1772861893224,0.002,1975.7,1975.6,0.47735431]
[1772861895558,0.002,1975.7,1975.6,1.74279265]
[1772861899263,0.4889153,1976.0,1975.7,0.47735431]
[1772861901069,0.4889153,1976.0,1975.7,1.74272084]
[1772861901268,0.4889153,1976.1,1975.8,0.47735431]
[1772861902063,1.26506248,1976.2,1975.8,0.47735431]
[1772861902267,0.83211354,1976.4,1976.0,0.47735431]
[1772861902567,2.09717602,1976.4,1976.0,0.47735431]
[1772861903360,2.09717602,1976.4,1976.1,1.74247247]
[1772861905652,0.002,1976.3,1976.1,1.74247247]
[1772861907075,0.002,1976.3,1976.2,0.47735431]
[1772861910744,0.4889153,1976.2,1975.9,2.59823171]
[1772861910943,0.4889153,1976.2,1975.9,1.333]
[1772861912872,0.49158014,1976.0,1975.9,1.333]
[1772861914757,0.49158014,1975.9,1975.7,0.001]
[1772861914967,1.75664262,1975.9,1975.7,0.001]
[1772861915156,1.75664262,1975.8,1975.5,0.001]
[1772861915980,1.75664262,1975.8,1975.5,0.48546606]
[1772861917881,3.021971,1975.8,1975.5,0.48546606]
[1772861918184,1.75690852,1975.8,1975.5,0.48546606]
[1772861919680,1.75690852,1975.8,1975.6,0.001]
[1772861919882,1.75890852,1975.8,1975.6,0.001]
[1772861920379,1.26506248,1975.7,1975.6,0.001]
[1772861929896,0.002,1976.1,1975.7,0.48446606]
[1772861931582,0.34319824,1976.4,1975.7,0.48446606]
[1772861931882,0.34319824,1976.4,1975.9,0.48446606]
[1772861933267,0.002,1976.0,1975.9,0.48446606]
[1772861933467,0.34319824,1976.4,1975.9,0.48446606]
[1772861933667,0.002,1976.1,1976.0,1.74964824]
[1772861933871,0.34319824,1976.4,1976.1,0.48446606]
[1772861934099,0.002,1976.3,1976.1,0.48446606]
[1772861935905,0.002,1976.3,1976.2,1.7495202]
[1772861936500,0.49158014,1976.6,1976.3,0.48446606]
[1772861936799,0.49158014,1976.6,1976.2,1.7495202]
[1772861939699,0.45158441,1976.5,1976.2,1.74951862]
[1772861939902,0.45158441,1976.5,1976.0,1.26514166]
[1772861940276,0.45158441,1976.5,1976.0,1.76328105]
[1772861941390,0.45158441,1976.4,1976.0,1.76328105]
[1772861941904,0.45158441,1976.4,1975.9,3.09004747]
[1772861942106,0.45158441,1976.4,1975.9,2.60124165]
[1772861942409,0.45158441,1976.4,1976.0,0.48880415]
[1772861943207,1.26484811,1976.6,1976.0,0.48880415]
[1772861943208,0.45795107,1976.5,1976.0,0.48880415]
[1772861943504,0.45795107,1976.6,1976.0,0.48880415]
[1772861943802,0.45795107,1976.7,1976.0,0.48880415]
[1772861944377,0.45795107,1976.7,1976.2,0.48880415]
[1772861945685,0.45795107,1977.0,1976.2,0.48880415]
[1772861945879,1.26452242,1977.1,1976.2,0.48880415]
[1772861945880,0.002,1976.5,1976.2,0.48880415]
[1772861946189,0.45795107,1976.8,1976.2,0.48880415]
[1772861946190,0.002,1976.7,1976.2,0.48880415]
[1772861947198,0.45795107,1976.8,1976.4,0.48880415]
[1772861947513,0.45795107,1977.0,1976.4,0.48880415]
[1772861947892,0.45795107,1977.0,1976.5,0.48880415]
[1772861950113,0.45795107,1977.0,1976.6,1.26479813]
[1772861950313,0.45795107,1977.0,1976.7,0.48880415]
[1772861953010,0.45795107,1977.0,1976.7,1.75353212]
[1772861953722,0.45795107,1977.0,1976.7,1.75353244]
[1772861954089,1.26438172,1977.3,1976.8,0.48880415]
[1772861954290,1.72233279,1977.3,1976.8,0.48880415]
[1772861954609,0.45795107,1977.2,1976.8,0.48880415]
[1772861954987,0.45795107,1977.2,1976.8,1.75345601]
[1772861955188,1.72237981,1977.2,1976.8,0.48880415]
[1772861955385,0.45795107,1977.1,1976.6,1.26476114]
[1772861956016,0.45795107,1977.1,1976.6,1.75356529]
[1772861958006,0.45995107,1977.0,1976.6,1.75356529]
[1772861961029,0.002,1977.0,1976.7,0.48880415]
[1772861962437,1.72216124,1977.6,1976.8,0.48880415]
[1772861962620,1.72216124,1977.6,1977.0,0.48880415]
[1772861962821,0.45795107,1977.5,1977.0,0.48880415]
[1772861964016,0.82012579,1977.7,1977.0,0.48880415]
[1772861964442,0.36217472,1977.7,1977.2,0.48880415]
[1772861965141,0.45795107,1978.0,1977.2,0.48880415]
[1772861965463,1.72185876,1978.0,1977.2,0.48880415]
[1772861965673,1.72185539,1978.0,1977.2,0.48880415]
[1772861966911,0.45795107,1978.0,1977.4,0.48880415]
[1772861967132,1.72185686,1978.0,1977.5,0.48880415]
[1772861967941,0.45795107,1977.9,1977.4,1.343]
[1772861969244,0.45795107,1977.8,1977.4,2.60724051]
[1772861969432,0.45795107,1977.8,1977.4,3.09604466]
[1772861970346,0.45795107,1977.8,1977.4,3.09607999]
[1772861973056,0.002,1977.7,1977.4,3.09607999]
[1772861974935,0.45746295,1977.6,1977.4,1.343]
[1772861975138,0.45746295,1977.6,1976.9,0.47274498]
[1772861979249,0.45746295,1977.6,1977.1,0.47274498]
[1772861979250,0.45746295,1977.5,1977.1,0.47274498]
[1772861980649,1.72360085,1977.7,1977.1,0.47274498]
[1772861980956,0.45746295,1977.6,1977.1,0.47274498]
[1772861981950,0.45746295,1977.6,1977.2,1.26441432]
[1772861982253,0.45746295,1977.6,1977.2,1.7371593]
[1772861983968,1.72163403,1977.6,1977.2,1.7371593]
[1772861984266,1.72162373,1977.6,1977.2,1.7371593]
[1772861984560,0.45746295,1977.6,1977.2,1.7371593]
[1772861987273,0.45746295,1977.6,1977.3,0.001]
[1772861989151,0.45746295,1977.6,1977.3,0.47374498]
[1772861989969,1.72162481,1977.6,1977.3,0.47374498]
[1772861990176,0.45746295,1977.6,1977.3,0.47374498]
[1772861990943,0.45946295,1977.7,1977.4,0.47274498]
[1772861993076,0.45946295,1977.7,1977.4,1.73699948]
[1772861993278,5.05507432,1978.3,1977.5,0.47274498]
[1772861993454,0.45746295,1978.2,1977.5,0.47274498]
[1772861995079,0.45746295,1978.0,1977.6,1.26415857]
[1772861995252,0.45746295,1978.0,1977.7,0.47274498]
[1772861997083,0.45746295,1978.0,1977.7,1.73679572]
[1772861997660,0.45532297,1978.1,1977.8,0.47263373]
[1772861998085,1.7190611,1978.3,1977.8,0.47263373]
[1772861998275,0.45532297,1978.2,1977.8,0.47263373]
[1772861999190,0.45532297,1978.2,1977.9,0.47263373]
[1772862000289,0.45532297,1978.4,1977.9,0.47263373]
[1772862000590,0.45532297,1978.4,1977.8,1.26399907]
[1772862000591,0.45532297,1978.3,1977.8,1.26399907]
[1772862000784,0.45532297,1978.3,1977.6,0.47263373]
[1772862000962,0.45532297,1978.3,1977.4,1.73792016]
[1772862001164,0.45532297,1978.1,1977.6,1.26415857]
[1772862001368,1.26377514,1978.2,1977.5,1.73683191]
[1772862001369,0.45732297,1977.9,1977.5,1.73683191]
[1772862003702,0.002,1977.9,1977.6,0.48335678]
[1772862005896,0.002,1977.9,1977.6,1.74748545]
[1772862006405,0.002,1977.9,1977.7,0.48335678]
[1772862007993,0.002,1977.9,1977.8,1.74738752]
[1772862008609,0.002,1977.9,1977.8,0.48335678]
[1772862010604,1.71807872,1978.6,1977.7,0.48335678]
[1772862010810,0.45455906,1978.6,1977.9,0.48335678]
[1772862011577,1.26349597,1978.7,1977.9,0.48335678]
[1772862011808,1.71805503,1978.7,1977.9,0.48335678]
[1772862012006,1.71803812,1978.7,1977.9,0.48335678]
[1772862012180,0.45455906,1978.7,1977.9,0.48335678]
[1772862012609,0.45455906,1978.6,1978.1,0.48335678]
[1772862013010,7.99375263,1979.1,1978.3,0.48335678]
[1772862013011,0.45455906,1979.0,1978.3,0.48335678]
[1772862013209,0.45455906,1979.0,1978.4,1.82735678]
[1772862013210,0.45455906,1978.9,1978.4,1.82735678]
[1772862013511,0.45455906,1978.8,1978.0,0.48335678]
[1772862014307,0.45455906,1978.6,1977.9,1.344]
[1772862014709,1.26558352,1978.5,1977.9,1.344]
[1772862014891,0.45455906,1978.4,1977.9,1.344]
[1772862015909,0.45455906,1978.4,1977.7,1.74844374]
[1772862016253,0.45455906,1978.4,1977.8,0.48335678]
[1772862016712,1.26371126,1978.3,1977.8,0.48335678]
[1772862016905,0.45455906,1978.2,1977.8,0.48335678]
[1772862020019,0.45455906,1978.1,1977.7,0.001]
[1772862022423,1.71846199,1978.0,1977.7,0.001]
[1772862024324,0.45455906,1978.0,1977.7,0.48435678]
[1772862024494,0.45455906,1977.9,1977.7,0.001]
[1772862027617,0.45455906,1977.9,1977.8,0.001]
[1772862028104,0.45455906,1978.3,1977.8,0.001]
[1772862028497,0.45455906,1978.1,1977.7,0.001]
[1772862030626,1.71841125,1978.1,1977.7,0.48435678]
[1772862031827,0.45455906,1978.0,1977.7,0.48435678]
[1772862032122,0.45455906,1978.0,1977.5,0.49630573]
[1772862033523,0.47758372,1977.9,1977.5,1.76047913]
[1772862034017,0.47758372,1978.1,1977.6,0.49630573]
[1772862035139,1.26384164,1978.1,1977.6,0.49630573]
[1772862036138,0.47758372,1978.1,1977.8,0.49630573]
[1772862038340,0.47758372,1978.1,1977.8,1.76029811]
[1772862038540,2.592,1978.5,1977.8,1.76029811]
[1772862038541,1.74136413,1978.2,1977.8,1.76029811]
[1772862038746,0.47758372,1978.2,1977.9,0.49630573]
[1772862039114,1.74123111,1978.4,1977.9,0.49630573]
[1772862039739,3.06958372,1978.5,1977.9,0.49630573]
[1772862040039,3.06958372,1978.5,1978.0,1.26390293]
[1772862040040,4.3331723,1978.5,1978.0,1.26390293]
[1772862040213,0.47758372,1978.4,1977.9,0.49630573]
[1772862040822,0.002,1978.1,1977.9,0.49630573]
[1772862041918,0.47758372,1978.4,1977.9,0.49630573]
[1772862042246,0.47758372,1978.4,1978.0,1.76020866]
[1772862042441,0.47758372,1978.4,1978.1,0.49630573]
[1772862043241,1.74110338,1978.6,1978.1,0.49630573]
[1772862044242,0.47758372,1978.5,1978.1,1.76013448]
[1772862044542,0.47758372,1978.5,1978.0,1.76018132]
[1772862044743,0.47758372,1978.5,1977.8,1.76029446]
[1772862045550,0.47758372,1978.5,1977.8,0.49630573]
[1772862046155,0.47758372,1978.5,1977.7,2.60805802]
[1772862046156,0.47758372,1978.5,1977.7,3.10439621]
[1772862046453,0.47758372,1978.3,1977.8,0.49630573]
[1772862047247,0.47758372,1978.3,1977.7,3.10439621]
[1772862047446,0.47758372,1978.3,1977.7,2.60809048]
[1772862047655,0.47758372,1978.3,1977.8,0.49630573]
[1772862048348,0.47758372,1978.2,1977.9,0.49630573]
[1772862049048,1.26376006,1978.3,1977.9,0.49630573]
[1772862049049,1.74134378,1978.3,1977.9,0.49630573]
[1772862049635,0.47758372,1978.2,1977.9,0.49630573]
[1772862051943,0.47758372,1978.2,1977.9,1.76026996]
[1772862052134,0.47758372,1978.2,1977.9,0.49630573]
[1772862054453,1.26378786,1978.2,1977.8,1.26398659]
[1772862054663,0.47758372,1978.1,1977.8,1.26398659]
[1772862055160,0.47758372,1978.1,1977.9,0.001]
[1772862056856,0.47758372,1978.0,1977.9,0.001]
[1772862060464,1.74148665,1978.0,1977.9,0.001]
[1772862062545,0.47758372,1978.0,1977.9,0.001]
[1772862063648,0.47925935,1978.2,1977.9,0.48835135]
[1772862064054,1.74303757,1978.2,1977.9,0.48835135]
[1772862064738,0.47925935,1978.2,1977.9,0.48835135]
[1772862065032,1.74303786,1978.2,1977.9,0.48835135]
[1772862068240,0.47725935,1978.1,1977.9,0.001]
[1772862068439,0.47725935,1978.1,1978.0,0.001]
[1772862073143,0.47925935,1978.2,1978.0,0.001]
[1772862073870,1.74304435,1978.2,1978.0,0.001]